bitfinex/quotes_ETHUSD_20241109
["timestamp","ask_amount","ask_price","bid_price","bid_amount"]
[1731142661738,0.7651,3025.2,3024.6,0.03167719]
[1731142662036,0.7651,3025.2,3024.5,0.20819293]
[1731142662239,0.7651,3025.2,3024.7,0.03164675]
[1731142662426,0.7651,3025.2,3024.5,0.20819293]
[1731142662593,0.7651,3025.2,3024.8,0.03161631]
[1731142662789,8.94488687,3025.4,3024.9,2.04291193]
[1731142663032,8.18548687,3025.4,3025.1,1.27431193]
[1731142663217,8.18548687,3025.4,3025.0,0.20429119]
[1731142663218,8.18548687,3025.4,3025.3,1.27431193]
[1731142663422,0.7594,3025.9,3025.3,1.27431193]
[1731142667403,0.7594,3025.9,3025.1,1.27431193]
[1731142668539,0.7594,3025.9,3025.2,0.7686]
[1731142668848,0.7794,3026.2,3025.3,1.34041441]
[1731142669003,3.0,3026.1,3025.3,1.55131585]
[1731142669207,8.95488687,3026.2,3025.3,1.48521337]
[1731142669449,8.95488687,3026.2,3025.4,0.03140451]
[1731142669450,0.7694,3026.2,3025.4,0.03140451]
[1731142669906,0.7594,3026.2,3025.4,0.03140451]
[1731142670102,0.7594,3026.2,3025.5,0.7686]
[1731142670302,0.7594,3026.2,3025.5,0.79997409]
[1731142671215,0.7594,3026.2,3025.5,1.02849284]
[1731142671733,0.7594,3026.2,3025.5,0.7686]
[1731142672107,0.7594,3026.2,3025.6,0.03134367]
[1731142672529,0.7594,3026.2,3025.5,0.7686]
[1731142672736,0.7594,3026.2,3025.7,0.03131324]
[1731142672943,0.7594,3026.2,3025.6,0.03134367]
[1731142673148,0.7594,3026.2,3025.5,0.7686]
[1731142673647,0.7594,3026.2,3025.6,0.03134367]
[1731142674503,0.7594,3026.2,3025.5,0.7686]
[1731142674708,0.7594,3026.2,3025.7,0.03118674]
[1731142674935,0.7594,3026.2,3025.6,0.03109067]
[1731142675211,0.7594,3026.2,3025.7,0.03106025]
[1731142675523,0.7594,3026.2,3025.5,0.7686]
[1731142675835,0.7594,3026.2,3025.6,0.03109067]
[1731142676143,0.7594,3026.2,3025.5,0.7686]
[1731142676509,0.7594,3026.2,3025.6,0.03109067]
[1731142676811,0.7594,3026.2,3025.5,0.7686]
[1731142677122,0.7594,3026.2,3025.7,0.03106025]
[1731142677453,0.7594,3026.2,3025.5,0.7686]
[1731142677636,1.95588869,3026.2,3025.8,0.03102983]
[1731142677833,1.96588869,3026.2,3025.5,0.7686]
[1731142678040,1.96588869,3026.2,3025.9,0.03099941]
[1731142678411,1.81885869,3026.2,3025.5,0.7686]
[1731142678749,0.18188587,3026.1,3025.5,0.7686]
[1731142681354,4.81885869,3026.2,3025.5,0.7686]
[1731142682108,3.01,3026.2,3025.5,0.7686]
[1731142685655,0.6599,3026.1,3025.5,0.7686]
[1731142686923,0.6599,3026.1,3024.8,0.7506]
[1731142686924,0.01,3025.9,3024.8,0.7506]
[1731142687231,0.01,3025.9,3024.9,0.03132702]
[1731142687431,0.01,3025.9,3025.0,0.7506]
[1731142687861,0.01,3025.9,3025.0,0.78189658]
[1731142688266,0.01,3025.9,3025.0,0.7506]
[1731142688470,0.01,3025.9,3025.1,0.20249119]
[1731142688877,0.01,3025.9,3025.2,0.03125712]
[1731142692445,0.01,3025.9,3025.1,0.20249119]
[1731142692887,8.18548687,3026.0,3025.3,2.02491193]
[1731142693040,8.18548687,3026.0,3025.2,0.03128047]
[1731142693041,8.18548687,3026.0,3025.6,0.7506]
[1731142693257,8.18548687,3026.0,3025.7,0.03112835]
[1731142693484,8.18548687,3026.0,3025.6,0.7506]
[1731142695489,9.96393556,3026.0,3025.6,0.7506]
[1731142695696,3.02,3025.9,3024.9,0.7506]
[1731142696752,3.02,3025.9,3025.0,1.27431193]
[1731142696986,11.20548687,3025.9,3025.0,1.27431193]
[1731142697183,2.11694224,3025.8,3024.9,0.7506]
[1731142698601,0.01,3025.5,3024.9,0.7506]
[1731142698890,0.6699,3025.5,3024.9,0.7506]
[1731142699195,0.01,3025.3,3024.9,0.7506]
[1731142703297,8.18548687,3025.4,3024.9,0.7506]
[1731142703481,8.18548687,3025.4,3024.9,0.95309119]
[1731142703883,8.18149694,3025.4,3024.9,0.95309119]
[1731142704289,8.18149694,3025.4,3025.0,1.27431193]
[1731142704597,8.18149694,3025.4,3024.9,0.95309119]
[1731142705397,8.18149694,3025.4,3024.9,0.7506]
[1731142705600,0.01,3025.3,3024.9,0.7506]
[1731142706598,8.18149694,3025.4,3024.9,0.7506]
[1731142708002,0.6599,3025.3,3024.9,0.7506]
[1731142708198,0.6599,3025.3,3024.7,2.10531193]
[1731142708586,0.6599,3025.3,3024.8,0.03135745]
[1731142709006,0.6599,3025.3,3024.7,2.10531193]
[1731142709444,0.6599,3025.3,3024.8,0.03135745]
[1731142709709,0.6599,3025.3,3024.7,2.10531193]
[1731142709919,0.6599,3025.3,3024.8,0.03135745]
[1731142710190,0.6599,3025.3,3024.7,2.10531193]
[1731142710616,0.6599,3025.3,3024.8,0.03145475]
[1731142710928,0.6599,3025.3,3024.7,2.10531193]
[1731142711113,0.6599,3025.3,3024.8,0.03145475]
[1731142711288,0.6599,3025.3,3024.7,2.10531193]
[1731142711490,0.6699,3025.3,3024.8,0.03145475]
[1731142711839,0.01,3025.1,3023.5,2.42181446]
[1731142712123,0.02,3025.1,3024.4,0.831]
[1731142712649,0.02,3025.1,3024.5,0.03164727]
[1731142712993,0.02,3025.1,3024.4,0.831]
[1731142713739,0.02,3025.1,3024.5,0.03165701]
[1731142715126,0.02,3025.1,3024.5,1.30596894]
[1731142717124,0.01,3025.1,3024.5,1.30596894]
[1731142717524,0.02,3025.1,3024.5,1.30596894]
[1731142717727,0.6599,3025.3,3024.9,1.27431193]
[1731142718214,8.19149694,3025.5,3025.1,2.10531193]
[1731142718725,8.19149694,3025.5,3025.2,0.03148677]
[1731142718892,0.01,3025.5,3025.2,0.03148677]
[1731142719097,0.01,3025.5,3025.1,2.10531193]
[1731142720223,0.6599,3025.6,3025.1,2.10531193]
[1731142722235,0.6599,3025.6,3025.1,0.831]
[1731142722452,1.02789,3025.6,3025.1,0.831]
[1731142722940,1.02789,3025.6,3025.2,0.03145174]
[1731142723096,1.02789,3025.6,3025.1,0.831]
[1731142723293,1.02789,3025.6,3025.2,0.03145174]
[1731142723722,1.02789,3025.6,3024.9,1.27431193]
[1731142723936,1.02789,3025.6,3025.0,0.0315126]
[1731142725241,1.02789,3025.6,3024.9,1.27431193]
[1731142725737,1.02789,3025.6,3025.0,0.0314581]
[1731142725911,1.02789,3025.6,3024.9,1.27431193]
[1731142726236,0.01,3025.7,3024.9,1.27431193]
[1731142726546,0.301,3025.6,3024.9,1.27431193]
[1731142726706,0.301,3025.6,3025.0,0.0314581]
[1731142729245,0.01,3025.5,3025.0,0.0314581]
[1731142729608,0.01,3025.5,3024.7,1.27431193]
[1731142730045,0.01,3025.5,3024.8,0.03153844]
[1731142730406,0.01,3025.5,3024.7,1.27431193]
[1731142730835,0.01,3025.5,3024.8,0.03153844]
[1731142731246,0.01,3025.5,3024.7,1.27431193]
[1731142731621,0.01,3025.5,3024.8,0.03153844]
[1731142732041,0.01,3025.5,3024.7,1.27431193]
[1731142732453,0.01,3025.5,3024.8,0.03153844]
[1731142732760,0.01,3025.5,3024.7,1.27431193]
[1731142733131,0.01,3025.5,3024.8,0.03268671]
[1731142733462,0.01,3025.5,3024.7,1.27431193]
[1731142733759,0.01,3025.5,3024.8,0.03268671]
[1731142733919,0.01,3025.5,3024.7,1.27431193]
[1731142734119,0.01,3025.5,3024.8,0.03268671]
[1731142734321,0.01,3025.5,3024.7,1.27431193]
[1731142734621,0.01,3025.1,3024.8,0.03273467]
[1731142735056,0.01,3025.1,3024.6,1.27431193]
[1731142735257,0.01,3025.1,3024.9,0.03155563]
[1731142735558,0.01,3025.1,3024.6,1.27431193]
[1731142735959,0.01,3025.1,3024.7,0.03165951]
[1731142736763,0.01,3025.1,3024.4,2.06891193]
[1731142736969,0.01,3025.1,3024.4,2.27580312]
[1731142737188,0.01,3025.1,3024.5,0.03171186]
[1731142740989,0.01,3025.1,3024.4,2.27580312]
[1731142741186,0.01,3025.1,3024.5,0.03169898]
[1731142741402,0.01,3025.1,3024.6,1.27431193]
[1731142741776,0.01,3025.1,3024.7,0.03163374]
[1731142744416,0.01,3025.3,3024.8,1.27431193]
[1731142744616,0.01,3025.1,3024.8,1.27431193]
[1731142744982,0.01,3025.3,3025.0,1.27431193]
[1731142745181,0.01,3025.5,3025.1,0.03604485]
[1731142745480,3.01,3025.5,3025.0,1.27431193]
[1731142745675,4.88738469,3025.6,3025.0,1.27431193]
[1731142745676,0.01,3025.3,3025.0,1.27431193]
[1731142746075,0.01,3025.5,3025.0,1.27431193]
[1731142748315,0.01,3025.5,3025.0,2.07661193]
[1731142748861,3.0,3025.6,3025.1,0.20766119]
[1731142749364,3.0,3025.6,3025.1,0.25091501]
[1731142750343,0.01,3025.7,3025.1,0.25091501]
[1731142750526,3.01,3025.7,3025.1,0.20766119]
[1731142751653,3.01,3025.7,3025.2,1.50273924]
[1731142751855,3.0,3025.7,3025.2,1.50273924]
[1731142752025,3.01,3025.7,3025.2,1.50273924]
[1731142752363,4.88738469,3025.8,3025.6,1.27431193]
[1731142752519,0.01,3026.1,3025.6,1.27431193]
[1731142753562,3.01,3026.1,3025.6,1.27431193]
[1731142753930,3.01,3026.1,3025.3,0.8023]
[1731142753931,3.01,3026.1,3025.4,1.27431193]
[1731142754124,3.01,3026.1,3025.4,1.50481585]
[1731142756176,3.01,3026.1,3024.8,0.8023]
[1731142756327,0.01,3025.7,3025.1,1.27431193]
[1731142757661,0.01,3025.7,3025.3,1.27431193]
[1731142758835,0.01,3025.7,3025.2,0.8023]
[1731142759034,0.01,3025.7,3025.1,1.27431193]
[1731142759831,0.01,3025.7,3025.1,1.48197312]
[1731142760033,0.01,3025.7,3025.3,1.27431193]
[1731142760957,7.89738469,3026.1,3025.5,2.07661193]
[1731142761138,4.89738469,3026.1,3025.5,2.07661193]
[1731142762221,0.01,3026.1,3025.5,2.07661193]
[1731142762431,0.01,3026.1,3025.5,2.28427312]
[1731142762895,0.01,3026.1,3025.5,0.20766119]
[1731142763099,0.01,3026.1,3025.3,1.27431193]
[1731142763406,0.01,3025.8,3025.2,0.8013]
[1731142763629,0.01,3025.8,3025.1,1.27431193]
[1731142767724,0.01,3025.8,3025.5,1.27431193]
[1731142768021,0.01,3025.8,3025.3,1.27431193]
[1731142768696,0.01,3025.8,3025.1,1.27431193]
[1731142768897,0.01,3025.8,3025.1,1.48187312]
[1731142771786,0.01,3025.8,3025.1,0.20756119]
[1731142772127,0.01,3025.8,3025.0,2.07561193]
[1731142774128,3.01,3025.8,3025.0,2.07561193]
[1731142775493,0.01,3025.5,3024.7,0.8013]
[1731142775706,0.01,3025.5,3024.8,1.27431193]
[1731142775949,0.01,3025.5,3024.8,1.31757136]
[1731142776234,0.01,3025.5,3024.8,1.48619907]
[1731142776594,0.01,3025.5,3024.8,1.5294585]
[1731142777591,0.01,3025.5,3025.0,1.27431193]
[1731142777834,0.01,3025.5,3025.2,1.27431193]
[1731142784226,0.01,3025.5,3025.0,1.27431193]
[1731142787259,0.01,3025.5,3025.0,1.50306184]
[1731142788547,0.01,3025.5,3025.2,1.27431193]
[1731142788729,0.01,3025.7,3025.2,1.27431193]
[1731142790654,0.01,3025.7,3025.4,1.27431193]
[1731142790839,0.01,3025.9,3025.6,1.27431193]
[1731142791445,4.88738469,3026.0,3025.6,1.27431193]
[1731142791946,4.88738469,3025.9,3025.6,1.27431193]
[1731142792661,4.88738469,3025.9,3025.8,1.27431193]
[1731142793935,4.88738469,3025.9,3025.8,2.08201193]
[1731142794738,4.88738469,3025.9,3025.8,2.29021312]
[1731142795955,4.88738469,3025.9,3025.1,0.8077]
[1731142796176,4.88738469,3025.8,3025.6,1.27431193]
[1731142800285,4.88738469,3026.2,3025.6,1.27431193]
[1731142800654,3.01,3026.1,3025.2,0.66391192]
[1731142800853,3.01,3026.1,3025.3,1.27431193]
[1731142800854,3.49873847,3026.1,3025.3,1.27431193]
[1731142801195,3.49873847,3026.1,3025.2,1.27431193]
[1731142802083,0.01,3025.9,3025.2,1.27431193]
[1731142803785,4.89738469,3025.9,3025.2,1.27431193]
[1731142804372,4.89738469,3025.9,3025.2,0.20820119]
[1731142804674,4.88738469,3025.9,3025.8,1.27431193]
[1731142804866,0.01,3026.4,3025.8,1.27431193]
[1731142806103,0.01,3026.4,3025.6,1.27431193]
[1731142806674,0.01,3026.4,3025.5,0.7935]
[1731142806880,0.79973847,3026.4,3025.5,0.7935]
[1731142807356,0.79973847,3026.4,3025.6,1.27431193]
[1731142809275,0.01,3026.4,3025.6,1.27431193]
[1731142809723,3.01,3026.4,3025.6,1.27431193]
[1731142810218,3.01,3026.4,3025.8,1.27431193]
[1731142810389,3.01,3026.4,3025.9,0.7935]
[1731142815609,0.01,3026.4,3025.9,0.7935]
[1731142817192,0.01,3026.4,3025.9,1.00028119]
[1731142819957,0.01,3026.4,3025.9,0.7935]
[1731142820660,0.01,3026.6,3026.2,1.27431193]
[1731142820958,1.38150902,3027.0,3026.5,0.7935]
[1731142820959,0.01,3027.0,3026.5,0.7935]
[1731142821173,4.88738469,3027.2,3026.8,1.27431193]
[1731142821174,4.89738469,3027.2,3026.8,1.27431193]
[1731142823128,0.01,3027.2,3026.8,1.27431193]
[1731142823343,0.01,3027.6,3027.1,1.27431193]
[1731142825465,0.49973847,3027.6,3026.6,1.27431193]
[1731142825647,0.49973847,3027.6,3026.6,2.05051193]
[1731142827464,5.38712316,3027.6,3026.6,0.7762]
[1731142827826,5.38712316,3027.6,3026.7,1.27431193]
[1731142828542,4.89738469,3027.6,3026.7,1.27431193]
[1731142830090,8.96454233,3028.4,3026.7,1.27431193]
[1731142830091,4.89738469,3028.2,3027.6,0.7762]
[1731142830376,1.71976865,3028.9,3027.6,0.7762]
[1731142830377,0.01,3028.4,3027.9,1.27431193]
[1731142830584,0.01,3028.4,3027.6,0.7762]
[1731142830745,4.88738469,3028.5,3028.0,1.27431193]
[1731142830941,0.04865287,3028.6,3028.2,1.27431193]
[1731142831330,0.04865287,3028.6,3028.1,0.7762]
[1731142832027,0.04865287,3028.6,3027.8,0.798]
[1731142832256,0.05865287,3028.6,3027.5,0.798]
[1731142832452,0.05865287,3028.6,3027.6,0.3798]
[1731142832871,0.05865287,3028.6,3027.5,0.798]
[1731142833730,0.01,3028.3,3027.5,0.798]
[1731142836043,0.01,3028.3,3027.2,0.798]
[1731142836434,0.01,3027.9,3027.2,0.798]
[1731142836646,0.01,3027.9,3027.0,2.7539013]
[1731142836981,0.01,3027.9,3027.1,0.35519013]
[1731142838244,0.01,3027.7,3027.1,0.35519013]
[1731142838450,0.01,3027.7,3026.9,0.798]
[1731142840336,0.01,3027.7,3027.0,2.7539013]
[1731142840540,0.01,3027.9,3027.0,2.81996647]
[1731142840739,4.89738469,3028.1,3027.0,2.7539013]
[1731142841782,4.89738469,3028.1,3026.9,0.798]
[1731142842392,0.01,3028.1,3027.0,0.35519013]
[1731142842584,0.01,3028.3,3027.4,2.7539013]
[1731142842943,0.01,3028.3,3027.5,0.7546]
[1731142843874,0.01,3028.3,3027.5,0.82065255]
[1731142844562,0.01,3028.3,3027.5,0.7546]
[1731142845693,0.01,3028.3,3027.2,0.7546]
[1731142845900,0.01,3028.3,3027.3,0.35085013]
[1731142847977,0.01,3028.3,3027.4,2.7539013]
[1731142848696,0.01,3028.3,3027.5,0.7546]
[1731142850879,0.01,3028.3,3027.4,2.7539013]
[1731142851601,0.01,3028.3,3027.3,1.10545013]
[1731142851768,0.01,3028.3,3027.4,0.38593514]
[1731142854068,3.01,3028.3,3027.4,0.38593514]
[1731142855293,3.01,3028.3,3027.3,0.7546]
[1731142856322,3.01,3028.3,3027.2,2.7539013]
[1731142856707,3.01,3028.3,3027.1,0.7546]
[1731142857031,3.01,3028.3,3026.9,2.7539013]
[1731142857032,0.01,3027.8,3026.9,2.7539013]
[1731142857180,0.01,3028.0,3026.9,2.7539013]
[1731142857384,0.01,3027.8,3026.9,3.10475143]
[1731142858821,0.00889954,3027.8,3026.9,3.10475143]
[1731142860031,0.00889954,3028.0,3027.2,2.7539013]
[1731142860323,3.00889954,3028.1,3027.3,0.7546]
[1731142862632,3.00889954,3028.1,3027.2,2.7539013]
[1731142862920,3.00889954,3028.1,3027.2,3.10802143]
[1731142864347,4.88738469,3028.2,3027.2,3.10802143]
[1731142864348,4.88738469,3028.2,3027.3,0.06605648]
[1731142864502,4.89628423,3028.2,3027.3,0.06605648]
[1731142864823,4.88738469,3028.2,3027.3,0.06605648]
[1731142865136,0.00889954,3028.6,3027.8,2.7539013]
[1731142865445,4.88738469,3028.8,3027.8,2.7539013]
[1731142865446,4.89628423,3028.8,3027.8,2.7539013]
[1731142865606,4.89628423,3028.8,3027.9,0.7873]
[1731142865807,0.00889954,3028.8,3027.9,0.7873]
[1731142866021,0.04953984,3028.9,3028.0,0.35412013]
[1731142866547,0.00889954,3029.0,3028.0,0.35412013]
[1731142867226,0.00889954,3029.0,3028.1,2.7539013]
[1731142869505,0.00889954,3029.0,3028.2,0.7873]
[1731142870104,0.00889954,3029.0,3028.1,2.7539013]
[1731142870105,0.04952981,3029.7,3028.8,0.7873]
[1731142870305,0.04952981,3029.7,3029.1,2.7539013]
[1731142870709,0.04952981,3029.7,3029.2,0.7873]
[1731142871303,0.04952981,3029.7,3029.4,2.7539013]
[1731142873955,0.04952981,3029.7,3029.2,0.7873]
[1731142874557,0.04952981,3029.7,3029.3,0.35412013]
[1731142875614,0.04952981,3029.7,3029.2,0.7873]
[1731142876405,0.04952981,3029.7,3028.9,1.14142013]
[1731142876609,0.04952981,3029.7,3028.9,0.7873]
[1731142878734,0.04952981,3029.7,3028.9,3.5412013]
[1731142878920,0.04952981,3029.7,3029.0,0.06601866]
[1731142879325,0.04952981,3029.7,3028.9,3.5412013]
[1731142879528,0.04952981,3029.7,3029.0,0.42013779]
[1731142880015,0.04952981,3029.7,3029.0,0.35412013]
[1731142883429,0.00889954,3030.0,3029.1,0.7903]
[1731142883630,0.00889954,3030.2,3029.5,2.7539013]
[1731142883847,0.00889954,3030.2,3029.6,0.27539013]
[1731142884156,0.00889954,3030.2,3029.3,0.7903]
[1731142885160,0.00889954,3030.2,3029.1,0.7903]
[1731142890202,2.7539013,3030.7,3028.6,0.66583502]
[1731142890203,0.00889954,3029.8,3028.8,0.7903]
[1731142891184,0.00889954,3029.8,3028.6,2.7539013]
[1731142891372,0.00889954,3029.8,3028.7,0.27539013]
[1731142894562,0.00889954,3029.8,3028.9,2.7539013]
[1731142895872,3.00889954,3030.0,3029.0,0.7903]
[1731142896286,0.00889954,3029.8,3029.0,0.7903]
[1731142898424,3.00889954,3030.0,3029.0,0.7903]
[1731142898583,0.00889954,3029.8,3029.1,0.35442013]
[1731142899319,3.00889954,3030.0,3029.1,0.35442013]
[1731142900990,9.54e-06,3029.8,3029.1,0.35442013]
[1731142901617,0.66294332,3030.5,3029.1,0.35442013]
[1731142901618,3.0,3030.3,3029.1,0.35442013]
[1731142901785,0.78873847,3030.2,3029.1,0.35442013]
[1731142902187,0.78873847,3030.2,3028.7,1.06569013]
[1731142904838,0.47356914,3030.2,3028.7,1.06569013]
[1731142905223,0.47356914,3030.2,3028.8,2.7539013]
[1731142907346,5.36095383,3030.2,3028.8,2.7539013]
[1731142907657,3.0,3030.1,3028.8,2.7539013]
[1731142909108,2.99219474,3030.1,3028.8,2.7539013]
[1731142913372,3.0,3030.3,3028.8,2.7539013]
[1731142913569,3.0,3030.3,3028.9,0.35442013]
[1731142914293,4.38150902,3030.3,3028.9,0.35442013]
[1731142915192,1.38150902,3030.2,3028.9,0.35442013]
[1731142915796,1.93150902,3030.1,3028.9,0.42043558]
[1731142916000,1.38150902,3030.2,3028.9,0.35442013]
[1731142916306,1.38150902,3030.1,3029.0,0.31083214]
[1731142916926,1.38150902,3030.2,3029.0,0.31083214]
[1731142917388,1.38150902,3030.2,3029.1,1.2701971]
[1731142917586,1.38150902,3030.1,3029.1,1.2701971]
[1731142917985,4.38150902,3030.1,3029.1,1.2701971]
[1731142918901,4.99234952,3030.1,3029.1,1.2701971]
[1731142919087,1.99234952,3030.1,3029.1,1.2701971]
[1731142919413,4.99234952,3030.1,3029.1,1.2701971]
[1731142919615,4.99234952,3030.1,3028.9,1.2701971]
[1731142920215,4.38150902,3030.0,3028.9,1.2701971]
[1731142920677,4.99234952,3030.1,3029.1,1.2701971]
[1731142921817,4.38150902,3030.1,3029.4,1.2701971]
[1731142922115,3.0,3030.1,3029.4,1.2701971]
[1731142922298,3.0,3030.1,3029.2,2.0451971]
[1731142924687,3.0,3030.1,3029.4,1.2701971]
[1731142925079,1.38150902,3030.3,3029.4,1.2701971]
[1731142925275,0.61096277,3030.3,3029.4,1.2701971]
[1731142925817,1.38150902,3030.2,3028.8,0.8106]
[1731142926129,4.38150902,3030.2,3028.9,1.2701971]
[1731142926416,1.38150902,3030.2,3029.1,1.2701971]
[1731142926615,0.49924718,3030.1,3029.1,1.2701971]
[1731142927327,1.99247179,3030.3,3029.1,1.2701971]
[1731142927895,1.99247179,3030.3,3029.2,0.8106]
[1731142928915,0.61096277,3030.3,3029.2,0.8106]
[1731142929108,1.99247179,3030.3,3029.2,0.8106]
[1731142929303,0.61096277,3030.3,3029.2,0.8106]
[1731142929506,0.49924718,3030.2,3029.2,1.01867971]
[1731142929924,0.49924718,3030.2,3029.5,1.2701971]
[1731142930415,0.49924718,3030.2,3029.2,1.01867971]
[1731142930416,4.88738469,3030.4,3029.9,1.2701971]
[1731142930620,4.88738469,3030.4,3029.7,1.2701971]
[1731142931706,4.88738469,3030.4,3029.6,0.87660741]
[1731142931906,4.88738469,3030.4,3029.8,1.2701971]
[1731142932314,4.38150902,3030.7,3029.8,1.2701971]
[1731142932506,1.09968022,3030.7,3030.0,1.2701971]
[1731142932818,4.88738469,3030.8,3030.0,2.0807971]
[1731142933900,4.88738469,3030.8,3029.8,1.2701971]
[1731142934499,3.0,3030.7,3029.8,1.2701971]
[1731142937020,3.0,3030.8,3029.8,1.2701971]
[1731142937223,4.05390908,3030.8,3029.8,1.47827681]
[1731142937522,4.05390908,3030.8,3029.9,0.06600156]
[1731142938540,4.05390908,3030.8,3029.8,1.47827681]
[1731142938960,4.05390908,3030.8,3029.8,0.20807971]
[1731142939138,4.05390908,3030.8,3029.9,1.2701971]
[1731142939576,4.05390908,3030.8,3029.4,1.2701971]
[1731142939577,4.88738469,3030.9,3030.3,1.2701971]
[1731142939756,0.04950444,3031.6,3030.3,1.2701971]
[1731142939757,7.53909081,3031.5,3030.3,1.2701971]
[1731142940344,6.15758179,3031.5,3030.3,1.2701971]
[1731142940965,3.0,3031.4,3030.3,1.2701971]
[1731142941267,3.0,3031.4,3030.5,1.2701971]
[1731142941456,4.88738469,3031.5,3030.6,0.21467891]
[1731142941656,4.88738469,3031.5,3030.4,0.8106]
[1731142942761,4.88738469,3031.5,3030.1,3.0]
[1731142942762,3.0,3031.4,3030.1,0.7953]
[1731142942962,7.88738469,3031.4,3030.1,0.7953]
[1731142945392,0.55,3031.3,3030.1,0.7953]
[1731142946667,0.55,3031.3,3029.7,3.54475162]
[1731142946994,3.55,3031.1,3029.7,1.14977516]
[1731142947151,3.55,3031.1,3029.7,0.7953]
[1731142947356,3.55,3030.9,3029.7,0.7953]
[1731142948860,3.0,3030.9,3029.8,3.54475162]
[1731142949078,3.0,3030.9,3029.9,0.35447516]
[1731142949299,3.0,3030.9,3029.8,0.7953]
[1731142951763,4.88738469,3030.8,3029.8,0.7953]
[1731142951970,3.0,3030.6,3029.8,0.7953]
[1731142953602,4.88738469,3030.7,3029.8,0.7953]
[1731142956789,3.0,3030.6,3029.8,0.7953]
[1731142957001,0.78873847,3030.5,3029.8,0.7953]
[1731142957567,3.0,3030.6,3029.8,0.7953]
[1731142957796,3.0,3030.8,3029.8,0.7953]
[1731142959720,0.55,3030.7,3029.8,0.7953]
[1731142961086,3.55,3030.5,3029.8,0.7953]
[1731142961395,1.27022345,3030.3,3029.8,0.7953]
[1731142961787,4.82022345,3030.5,3029.8,0.7953]
[1731142961987,1.10891172,3030.4,3029.8,0.7953]
[1731142963086,1.10891172,3030.4,3029.2,0.8123]
[1731142963412,3.0,3030.2,3029.4,0.8123]
[1731142966718,3.0,3030.4,3029.4,0.8123]
[1731142966916,3.0,3030.4,3029.6,0.8123]
[1731142972510,7.88738469,3030.4,3029.6,0.8123]
[1731142974894,1.82022345,3030.3,3029.6,0.8123]
[1731142978383,4.88738469,3030.2,3029.6,0.8123]
[1731142978726,3.0,3030.1,3029.6,0.8123]
[1731142979385,3.97076081,3030.1,3029.6,0.8123]
[1731142979920,3.97076081,3030.1,3030.0,10.0]
[1731142980129,8.8581455,3030.1,3030.0,10.0]
[1731142981321,7.88738469,3030.1,3030.0,10.0]
[1731142981727,9.15760814,3030.1,3030.0,10.0]
[1731142982899,9.70760814,3030.1,3030.0,10.0]
[1731142985531,7.88738469,3030.1,3030.0,10.0]
[1731142991137,8.43642865,3030.1,3030.0,10.0]
[1731142991437,9.84494824,3030.1,3030.0,10.0]
[1731142991699,11.22645726,3030.1,3030.0,10.0]
[1731142992756,11.23764175,3030.1,3030.0,10.0]
[1731142992960,9.86494824,3030.1,3030.0,0.56770074]
[1731142993273,0.01,3029.7,3028.5,0.7992]
[1731142993472,1.27022345,3028.9,3028.6,0.24691095]
[1731142993659,3.0,3029.1,3028.7,0.24691933]
[1731142993863,3.0,3029.1,3028.5,0.7992]
[1731142993864,3.0,3029.1,3028.8,0.24691933]
[1731142994195,4.5345277,3029.2,3028.9,1.04611933]
[1731142994488,4.5345277,3029.2,3029.0,1.04611933]
[1731142994691,1.27022345,3029.7,3028.6,1.27022345]
[1731142994692,5.80475115,3029.7,3029.1,1.04611933]
[1731142994897,3.0,3029.6,3029.2,1.04611933]
[1731142995194,3.0,3029.6,3029.3,1.04611933]
[1731142995408,3.0,3029.6,3029.4,0.24691933]
[1731142995552,3.0,3029.6,3029.3,0.7992]
[1731142995754,3.0,3029.6,3029.4,0.24657173]
[1731142995953,3.0,3029.6,3029.3,0.7992]
[1731142996184,3.0,3029.6,3029.4,0.24658886]
[1731142996353,3.0,3029.6,3029.3,0.7992]
[1731142996549,3.0,3029.6,3029.4,0.2465501]
[1731142996748,3.0,3029.6,3029.3,0.7992]
[1731142996948,3.0,3029.6,3029.4,0.2465626]
[1731142997375,3.0,3029.6,3029.3,0.7992]
[1731142997750,3.0,3029.6,3028.0,3.00999046]
[1731142997751,0.55,3029.4,3028.3,0.7992]
[1731142997956,5.80475115,3029.3,3028.3,0.7992]
[1731142998400,1.27022345,3029.1,3028.3,0.7992]
[1731142999768,1.27022345,3028.9,3028.3,0.7992]
[1731143000304,1.27022345,3028.7,3028.3,0.7992]
[1731143000859,1.27022345,3028.9,3028.3,0.7992]
[1731143004893,1.27022345,3028.7,3028.3,0.7992]
[1731143005206,1.27022345,3028.7,3027.1,3.0]
[1731143005207,3.0,3028.6,3027.5,0.7758]
[1731143005366,4.5345277,3028.5,3027.5,0.7758]
[1731143005696,3.0,3028.4,3027.5,0.7758]
[1731143005876,3.0,3028.4,3027.5,0.84185411]
[1731143006076,3.0,3028.4,3027.7,0.7758]
[1731143009726,4.5345277,3029.3,3028.4,0.7758]
[1731143010020,1.4249538,3029.5,3028.5,0.7758]
[1731143010021,4.5345277,3029.4,3028.5,0.7758]
[1731143011132,4.5345277,3029.3,3028.5,0.7758]
[1731143011419,3.0,3029.2,3028.5,0.7758]
[1731143012735,0.55,3029.1,3028.5,0.7758]
[1731143012874,0.55,3028.9,3028.2,0.7758]
[1731143016219,7.5345277,3029.0,3028.2,0.7758]
[1731143016521,4.5345277,3029.0,3028.2,0.7758]
[1731143017078,4.5345277,3029.7,3028.2,0.7758]
[1731143017299,0.72883337,3029.6,3028.2,0.7758]
[1731143018112,0.55,3029.5,3028.2,0.7758]
[1731143019714,0.55,3029.3,3028.2,0.7758]
[1731143021986,3.55,3029.1,3028.2,0.7758]
[1731143022181,0.55,3028.9,3028.2,0.7758]
[1731143022486,0.55,3028.7,3028.2,0.7758]
[1731143022913,3.0,3028.5,3028.2,0.7758]
[1731143023087,7.5345277,3028.5,3028.2,0.7758]
[1731143028929,4.5345277,3028.4,3028.2,0.7758]
[1731143029123,0.75345277,3028.3,3028.2,0.7758]